bitfinex/quotes_SOLUSD_20220128
["timestamp","ask_amount","ask_price","bid_price","bid_amount"]
[1643359808706,16.7854,89.48,89.368,1.54251308]
[1643359809004,16.7854,89.48,89.372,0.25]
[1643359809205,2.95669142,89.479,89.372,0.25]
[1643359809403,2.95669142,89.479,89.362,47.1272]
[1643359809404,14.43832023,89.479,89.362,47.1272]
[1643359809605,96.87002489,89.478,89.363,31.55323164]
[1643359809827,111.30834512,89.478,89.363,31.55323164]
[1643359810029,14.43832023,89.477,89.363,31.55323164]
[1643359810230,16.7891,89.46,89.363,31.55323164]
[1643359810434,16.7891,89.46,89.364,2.28997528]
[1643359810630,16.7891,89.46,89.364,2.53997528]
[1643359811033,16.7891,89.46,89.365,2.28997528]
[1643359811330,16.7891,89.46,89.366,0.25]
[1643359811531,16.7891,89.46,89.364,110.95]
[1643359811730,19.05669142,89.49,89.365,2.28997528]
[1643359811731,0.25,89.459,89.365,2.28997528]
[1643359811935,0.25,89.459,89.367,2.28997528]
[1643359812230,16.7844,89.49,89.38,16.1]
[1643359812429,0.25,89.489,89.381,23.2822]
[1643359812631,49.44465324,89.489,89.382,2.11479628]
[1643359812830,2.95669142,89.488,89.382,2.11479628]
[1643359814032,16.7856,89.48,89.382,2.11479628]
[1643359814533,2.95669142,89.479,89.382,2.11479628]
[1643359815332,16.7879,89.46,89.383,0.25]
[1643359815534,39.27401026,89.459,89.383,0.25]
[1643359816833,36.14596826,89.459,89.383,0.25]
[1643359817433,2.95669142,89.477,89.383,0.25]
[1643359818434,47.89210526,89.476,89.383,0.25]
[1643359818837,2.95669142,89.475,89.383,0.25]
[1643359819239,113.65669142,89.475,89.383,0.25]
[1643359819435,16.7872,89.47,89.382,2.11479628]
[1643359820036,2.95669142,89.469,89.382,2.11479628]
[1643359821339,16.7891,89.46,89.382,2.11479628]
[1643359821536,34.49182482,89.458,89.382,2.11479628]
[1643359821938,113.65669142,89.457,89.382,2.11479628]
[1643359822339,2.95669142,89.456,89.382,2.11479628]
[1643359822941,16.7908,89.45,89.382,2.11479628]
[1643359823343,2.95669142,89.449,89.382,2.11479628]
[1643359823541,2.95669142,89.449,89.34,16.1]
[1643359823744,2.95669142,89.449,89.357,23.5649]
[1643359824542,2.95669142,89.449,89.363,34.46745906]
[1643359825543,36.09509942,89.439,89.363,34.46745906]
[1643359825843,110.7,89.438,89.363,34.46745906]
[1643359826044,113.90669142,89.438,89.363,34.46745906]
[1643359826243,2.95669142,89.437,89.363,34.46745906]
[1643359826843,2.95669142,89.437,89.364,0.25]
[1643359829247,16.793,89.44,89.364,0.25]
[1643359829447,2.95669142,89.447,89.364,0.25]
[1643359829644,2.95669142,89.459,89.364,0.25]
[1643359829844,110.7,89.469,89.364,0.25]
[1643359830045,110.7,89.469,89.367,1.54251308]
[1643359830245,41.47747053,89.468,89.366,1.54251308]
[1643359830449,110.7,89.467,89.364,110.95]
[1643359830647,110.95,89.467,89.368,1.54251308]
[1643359830848,113.90669142,89.467,89.368,1.54251308]
[1643359831047,2.95669142,89.466,89.363,36.00997214]
[1643359831246,2.95669142,89.466,89.363,34.46745906]
[1643359831648,2.95669142,89.466,89.364,1.54251308]
[1643359832047,2.95669142,89.466,89.365,0.25]
[1643359832247,2.95669142,89.466,89.364,0.25]
[1643359832447,16.7885,89.47,89.364,0.25]
[1643359832646,1.53952643,89.476,89.375,1.54251308]
[1643359832847,1.53952643,89.478,89.38,16.1]
[1643359833047,1.53952643,89.487,89.386,1.54251308]
[1643359833347,36.9291902,89.487,89.388,2.32861086]
[1643359833648,1.53952643,89.482,89.388,2.32861086]
[1643359833847,1.53952643,89.483,89.389,0.25]
[1643359834047,38.46871663,89.487,89.389,0.25]
[1643359834250,36.9291902,89.487,89.39,1.54251308]
[1643359834548,36.9291902,89.487,89.391,49.2028]
[1643359834748,36.9291902,89.487,89.392,110.7]
[1643359834947,36.9291902,89.487,89.392,112.24251308]
[1643359835147,36.9291902,89.487,89.393,0.25]
[1643359835351,0.25,89.486,89.393,0.25]
[1643359835548,36.9291902,89.487,89.393,1.79251308]
[1643359835948,1.53952643,89.493,89.393,1.79251308]
[1643359836149,1.53952643,89.51,89.403,6.0]
[1643359836350,1.53952643,89.51,89.414,0.30866176]
[1643359836548,1.53952643,89.522,89.42,16.1]
[1643359836753,1.53952643,89.525,89.422,1.54251308]
[1643359836953,1.53952643,89.526,89.431,34.46745906]
[1643359837152,3.07770213,89.552,89.434,75.0]
[1643359837353,3.07770213,89.554,89.441,6.0]
[1643359837552,3.07770213,89.554,89.45,16.1]
[1643359837755,3.07770213,89.568,89.451,47.414]
[1643359837954,3.07770213,89.568,89.461,2.32861086]
[1643359838152,3.07770213,89.574,89.471,0.31995295]
[1643359838353,3.07770213,89.596,89.471,66.91995295]
[1643359838654,3.07770213,89.618,89.499,0.30136691]
[1643359838852,3.07770213,89.618,89.51,16.1]
[1643359839051,17.86400561,89.646,89.51,16.1]
[1643359839052,3.07770213,89.622,89.521,34.46745906]
[1643359839255,3.07770213,89.629,89.53,16.1]
[1643359839456,20.94170774,89.646,89.531,6.0]
[1643359839654,17.86400561,89.646,89.54,6.0]
[1643359839953,20.94078043,89.645,89.541,0.25]
[1643359840153,3.07677482,89.644,89.541,0.25]
[1643359840354,0.25,89.643,89.541,2.57861086]
[1643359840559,0.25,89.643,89.551,6.0]
[1643359840754,3.07575951,89.642,89.551,6.0]
[1643359840958,3.07575951,89.642,89.552,0.25]
[1643359841357,45.07249138,89.644,89.552,0.25]
[1643359841758,16.7523,89.66,89.552,0.25]
[1643359842058,17.86400561,89.663,89.552,0.25]
[1643359842855,40.626333,89.662,89.552,0.25]
[1643359843057,40.626333,89.662,89.561,30.3640271]
[1643359843257,40.626333,89.662,89.562,0.25]
[1643359843455,17.86400561,89.663,89.571,6.0]
[1643359843656,111.9,89.681,89.571,6.0]
[1643359843855,2.95669142,89.695,89.572,0.25]
[1643359844054,3.07770213,89.701,89.573,6.0]
[1643359844255,20.94170774,89.71,89.574,0.25]
[1643359844458,39.80201722,89.701,89.583,6.43204282]
[1643359844656,39.80201722,89.701,89.593,6.0]
[1643359844859,16.7443,89.7,89.594,0.25]
[1643359845461,39.80201722,89.701,89.595,2.28389806]
[1643359845661,39.80201722,89.701,89.606,30.3640271]
[1643359845859,39.80201722,89.701,89.607,0.25]
[1643359846059,111.9,89.717,89.616,6.0]
[1643359846259,111.9,89.717,89.617,0.25]
[1643359846861,111.9,89.717,89.617,6.25]
[1643359847061,49.19088953,89.716,89.617,6.25]
[1643359847461,49.19088953,89.716,89.621,6.43204282]
[1643359847861,49.19088953,89.716,89.622,0.25]
[1643359848262,2.95669142,89.715,89.622,0.25]
[1643359848664,0.25,89.714,89.622,0.25]
[1643359849064,2.95669142,89.713,89.631,6.0]
[1643359849263,2.95669142,89.713,89.632,0.25]
[1643359849463,0.25,89.714,89.632,0.25]
[1643359850668,49.19088953,89.716,89.632,0.25]
[1643359850998,49.19088953,89.716,89.621,6.43204282]
[1643359850999,0.25,89.715,89.631,6.0]
[1643359851367,0.25,89.715,89.632,0.25]
[1643359853070,16.7431,89.71,89.621,6.43204282]
[1643359853373,16.1,89.7,89.56,16.1]
[1643359853571,16.1,89.7,89.56,32.5789]
[1643359853769,41.17926739,89.699,89.56,32.5789]
[1643359853970,50.97605771,89.699,89.56,32.5789]
[1643359854172,50.97605771,89.699,89.566,2.2777117]
[1643359854173,23.31526178,89.698,89.566,2.2777117]
[1643359854373,36.14973197,89.698,89.57,16.1]
[1643359854571,33.19304055,89.698,89.581,8.52923126]
[1643359855176,33.19304055,89.698,89.582,0.25]
[1643359855680,33.19304055,89.698,89.582,113.2277117]
[1643359855879,33.19304055,89.698,89.583,2.2777117]
[1643359856077,2.95669142,89.709,89.583,2.2777117]
[1643359856277,2.95669142,89.709,89.584,0.25]
[1643359856678,2.95669142,89.709,89.585,2.2777117]
[1643359856880,2.95669142,89.709,89.592,6.0]
[1643359857080,46.56485443,89.708,89.586,0.25]
[1643359857480,2.95669142,89.707,89.586,2.5277117]
[1643359857681,2.95669142,89.707,89.591,6.0]
[1643359857882,2.95669142,89.707,89.592,0.25]
[1643359858081,2.95669142,89.707,89.597,26.28698906]
[1643359858282,2.95669142,89.707,89.598,0.25]
[1643359858709,2.95669142,89.707,89.599,2.2777117]
[1643359858911,2.95669142,89.707,89.6,0.25]
[1643359859313,2.95669142,89.707,89.601,2.2777117]
[1643359859713,2.95669142,89.707,89.602,0.25]
[1643359860114,2.95669142,89.707,89.603,2.2777117]
[1643359860318,2.95669142,89.707,89.604,0.25]
[1643359860917,47.21311825,89.706,89.604,0.25]
[1643359861317,113.90669142,89.705,89.598,110.7]
[1643359861618,16.7448,89.7,89.597,26.28698906]
[1643359862017,2.95669142,89.699,89.597,26.28698906]
[1643359862617,2.95669142,89.699,89.598,0.25]
[1643359863219,113.65669142,89.699,89.598,0.25]
[1643359863622,2.95669142,89.698,89.598,0.25]
[1643359864222,16.7461,89.69,89.598,0.25]
[1643359864622,38.12750325,89.689,89.598,0.25]
[1643359865024,2.95669142,89.688,89.598,110.95]
[1643359865222,2.95669142,89.712,89.598,110.95]
[1643359865423,2.95669142,89.712,89.6,16.1]
[1643359865623,3.07770213,89.732,89.61,6.0]
[1643359865823,3.07770213,89.734,89.611,0.25]
[1643359866025,38.49820104,89.725,89.612,110.7]
[1643359866325,38.49820104,89.725,89.613,0.25]
[1643359866526,3.07770213,89.722,89.613,0.25]
[1643359866724,3.07769317,89.723,89.613,0.25]
[1643359867324,111.9,89.716,89.613,0.25]
[1643359867724,6.1553953,89.723,89.613,0.25]
[1643359867925,38.49820104,89.725,89.614,2.27303567]
[1643359868326,38.49820104,89.725,89.612,110.7]
[1643359868327,3.07770213,89.722,89.615,0.25]
[1643359868626,3.08435922,89.723,89.61,16.1]
[1643359868627,3.07770213,89.711,89.61,16.1]
[1643359868826,55.60232681,89.71,89.59,16.1]
[1643359869028,45.04889215,89.696,89.561,47.2112]
[1643359869228,3.08435922,89.695,89.561,47.2112]
[1643359869526,3.07770213,89.68,89.561,47.2112]
[1643359869752,3.07770213,89.679,89.584,23.8905]
[1643359869954,3.07770213,89.681,89.584,23.8905]
[1643359870162,3.07770213,89.686,89.584,23.8905]
[1643359870356,16.7476,89.68,89.584,23.8905]
[1643359870555,3.08435922,89.679,89.584,23.8905]
[1643359870755,38.28346552,89.678,89.585,110.7]
[1643359870956,3.08435922,89.677,89.585,110.7]
[1643359871159,3.07770213,89.686,89.598,0.25]
[1643359871560,3.09318748,89.685,89.598,0.25]
[1643359871758,3.07770213,89.692,89.598,0.25]
[1643359872158,2.95669142,89.716,89.598,0.25]
[1643359872159,3.07770213,89.693,89.598,0.25]
[1643359872457,3.07770213,89.702,89.599,2.28086802]
[1643359872660,3.0931133,89.701,89.599,2.28086802]
[1643359872858,3.07770213,89.703,89.6,0.25]
[1643359873059,47.271047,89.703,89.6,0.25]
[1643359873257,44.19334487,89.703,89.6,0.25]
[1643359873458,3.0931133,89.702,89.6,0.25]
[1643359873760,3.3431133,89.702,89.6,0.25]
[1643359873957,6.17081543,89.701,89.6,0.25]
[1643359874157,6.17081543,89.701,89.599,0.25]
[1643359874557,3.07770213,89.692,89.599,0.25]
[1643359874759,3.07770213,89.693,89.599,0.25]
[1643359875260,3.07770213,89.69,89.599,0.25]
[1643359875459,48.40879862,89.689,89.599,0.25]
[1643359875658,0.25,89.702,89.599,0.25]
[1643359875659,3.07770213,89.687,89.599,0.25]
[1643359875860,3.07770213,89.696,89.6,2.28086802]
[1643359876258,3.07770213,89.695,89.601,0.25]
[1643359876458,3.07770213,89.692,89.601,0.25]
[1643359876658,3.0931133,89.709,89.601,0.25]
[1643359876659,3.07770213,89.697,89.601,0.25]
[1643359876860,3.07770213,89.699,89.601,0.25]
[1643359877059,3.07770213,89.697,89.601,0.25]
[1643359877359,3.07770213,89.693,89.601,0.25]
[1643359877559,3.07770213,89.695,89.601,0.25]
[1643359877959,3.07770213,89.694,89.601,0.25]
[1643359878161,3.07770213,89.698,89.601,0.25]
[1643359878361,3.0931133,89.7,89.599,0.25]
[1643359878562,6.17081543,89.7,89.602,2.28086802]
[1643359878762,3.07770213,89.696,89.609,110.7]
[1643359878965,3.0931133,89.7,89.609,110.7]
[1643359879166,0.25,89.695,89.61,2.53086802]
[1643359879365,0.25,89.699,89.61,2.53086802]
[1643359879665,3.0931133,89.698,89.611,2.28086802]
[1643359879965,3.0931133,89.698,89.612,0.25]
[1643359880165,0.25,89.699,89.622,110.7]
[1643359880367,0.25,89.699,89.623,0.25]
[1643359880565,3.07770213,89.708,89.623,2.53086802]
[1643359880766,3.07770213,89.713,89.623,2.53086802]
[1643359880965,3.07770213,89.717,89.624,2.28086802]
[1643359881167,3.07770213,89.718,89.624,112.98086802]
[1643359881364,3.07770213,89.718,89.625,0.25]
[1643359881564,3.07770213,89.719,89.625,2.53086802]
[1643359881766,3.09464707,89.717,89.625,2.53086802]
[1643359881965,3.07770213,89.72,89.625,2.53086802]
[1643359882765,0.25,89.719,89.625,2.53086802]
[1643359883166,3.09464707,89.718,89.625,2.53086802]
[1643359883366,0.25,89.717,89.625,2.53086802]
[1643359883571,3.09464707,89.716,89.625,2.53086802]
[1643359884169,3.09464707,89.716,89.625,0.25]
[1643359884368,46.8488279,89.712,89.625,0.25]
[1643359884569,3.07770213,89.708,89.625,0.25]
[1643359884775,6.1723492,89.711,89.625,0.25]
[1643359885172,3.09464707,89.711,89.625,0.25]
[1643359885373,3.09464707,89.71,89.625,0.25]
[1643359885576,3.09464707,89.711,89.625,0.25]
[1643359885776,6.1723492,89.711,89.625,0.25]
[1643359886174,3.07770213,89.709,89.625,0.25]
[1643359886376,3.07770213,89.707,89.625,0.25]
[1643359886776,3.09464707,89.707,89.625,0.25]
[1643359886976,6.1723492,89.707,89.625,0.25]
[1643359887176,3.07770213,89.706,89.625,0.25]
[1643359887377,3.09464707,89.707,89.625,0.25]
[1643359887577,3.07770213,89.706,89.625,0.25]
[1643359887775,3.09464707,89.707,89.625,0.25]
[1643359889383,6.1723492,89.707,89.625,0.25]
[1643359889881,3.07770213,89.706,89.625,0.25]
[1643359890080,3.09464707,89.707,89.625,0.25]
[1643359890280,3.07770213,89.709,89.625,0.25]
[1643359891084,45.0001455,89.708,89.625,0.25]
[1643359891282,3.09464707,89.707,89.625,0.25]
[1643359891482,6.1723492,89.707,89.625,0.25]
[1643359892183,3.09464707,89.707,89.625,0.25]
[1643359892383,3.07770213,89.713,89.626,2.28086793]
[1643359892581,3.07770213,89.715,89.625,0.25]
[1643359892781,3.07770213,89.712,89.625,0.25]
[1643359892981,3.07770213,89.711,89.625,0.25]
[1643359893582,3.07770213,89.709,89.625,0.25]
[1643359893782,3.07770213,89.708,89.625,0.25]
[1643359893983,3.07770213,89.708,89.626,2.28086793]
[1643359894383,3.09464707,89.709,89.627,0.25]
[1643359894887,6.1723492,89.709,89.627,0.25]
[1643359895089,3.07770213,89.707,89.627,0.25]
[1643359895690,3.07770213,89.708,89.625,0.25]
[1643359895888,3.07770213,89.705,89.625,0.25]
[1643359896304,3.07770213,89.702,89.625,0.25]
[1643359896505,3.07770213,89.701,89.625,0.25]
[1643359896705,3.07770213,89.704,89.625,0.25]
[1643359896906,3.09464707,89.709,89.625,0.25]
[1643359897606,3.07770213,89.71,89.625,0.25]
[1643359898009,2.57770213,89.711,89.634,6.0]
[1643359898309,4.6303329,89.75,89.635,75.25]
[1643359898507,4.6303329,89.75,89.645,6.0]
[1643359898707,3.09280422,89.759,89.646,110.7]
[1643359898908,49.69818522,89.759,89.65,6.0]
[1643359899108,49.69818522,89.759,89.647,44.92153033]
[1643359899109,3.09280422,89.758,89.661,2.67042405]
[1643359899408,3.09280422,89.758,89.662,0.25]
[1643359899615,3.09280422,89.778,89.671,6.0]
[1643359899810,3.09280422,89.778,89.672,110.95]
[1643359900021,3.09280422,89.778,89.672,116.95]
[1643359900215,3.09280422,89.778,89.672,119.23086793]
[1643359900513,20.82069703,89.777,89.67,16.1]
[1643359900815,4.6303329,89.763,89.661,2.67042405]
[1643359901015,47.17178254,89.762,89.661,2.67042405]
[1643359901211,9.28356998,89.761,89.661,2.67042405]
[1643359901412,12.2402614,89.761,89.661,2.67042405]
[1643359901611,6.04949564,89.761,89.661,2.67042405]
[1643359901813,16.1,89.78,89.663,75.0]
[1643359902017,2.95669142,89.797,89.707,0.32212382]
[1643359902213,2.95669142,89.797,89.71,16.1]
[1643359902413,3.09266684,89.796,89.711,111.75]
[1643359902612,4.63900026,89.835,89.721,6.0]
[1643359902813,4.63900026,89.835,89.722,111.75]
[1643359903015,4.63900026,89.835,89.732,6.0]
[1643359903213,3.07906209,89.839,89.733,24.1396]
[1643359903415,3.07906209,89.839,89.733,24.3896]
[1643359903713,3.07906209,89.839,89.743,6.0]
[1643359903913,3.07906209,89.839,89.744,0.25]
[1643359904115,3.07906209,89.847,89.744,0.25]
[1643359904312,39.88564456,89.848,89.744,0.25]
[1643359904313,6.03575351,89.838,89.744,0.25]
[1643359904512,6.03575351,89.838,89.73,16.1]
[1643359904513,3.07906209,89.837,89.73,16.1]
[1643359904714,6.28575351,89.837,89.69,16.7189]
[1643359904913,3.07906209,89.836,89.7,16.1]
[1643359905116,16.8424495,89.836,89.722,6.0]
[1643359905313,40.76644983,89.834,89.722,6.0]
[1643359905512,3.07906209,89.833,89.7,16.1]
[1643359905713,23.374,89.832,89.71,6.0]
[1643359905915,16.7201,89.83,89.711,0.25]
[1643359906314,10.80669599,89.829,89.711,0.25]
[1643359906512,13.76338741,89.829,89.711,0.25]
[1643359906913,2.95669142,89.828,89.712,2.28870753]
[1643359907113,40.76644983,89.834,89.722,6.0]
[1643359907312,40.76644983,89.834,89.723,47.2144]
[1643359907513,2.95669142,89.828,89.724,111.5]
[1643359907914,40.76644983,89.834,89.725,0.25]
[1643359908114,2.95669142,89.834,89.725,0.25]
[1643359908313,16.7167,89.84,89.726,22.04257735]
[1643359908513,22.7288,89.849,89.73,16.1]
[1643359908718,22.7288,89.849,89.731,111.5]
[1643359908912,0.25,89.848,89.731,111.75]
[1643359909113,0.25,89.848,89.732,2.28870753]
[1643359909312,0.25,89.848,89.733,0.25]
[1643359909713,2.95669142,89.847,89.733,0.25]
[1643359910314,22.7288,89.849,89.733,21.93146624]
[1643359910513,22.7288,89.849,89.734,2.28870753]
[1643359910716,22.7288,89.849,89.734,2.53870753]
[1643359910922,22.7288,89.849,89.744,6.0]
[1643359911222,22.7288,89.849,89.75,16.1]
[1643359911416,22.7288,89.849,89.751,0.25]
[1643359911915,16.7136,89.86,89.751,0.25]
[1643359912115,16.7136,89.86,89.752,2.28870753]
[1643359912314,42.07577777,89.859,89.753,0.25]
[1643359912513,45.03246919,89.859,89.751,0.25]
[1643359912715,42.07577777,89.859,89.751,0.25]
[1643359912914,0.25,89.858,89.76,6.0]
[1643359913116,0.25,89.858,89.761,111.5]
[1643359913314,0.25,89.859,89.761,111.5]
[1643359913614,0.25,89.859,89.761,113.78870753]
[1643359913818,47.9681,89.872,89.761,113.78870753]
[1643359914117,41.25280258,89.871,89.761,111.5]
[1643359914317,41.25280258,89.871,89.762,48.1791]
[1643359914718,41.25280258,89.871,89.773,111.5]
[1643359915017,41.25280258,89.871,89.774,24.007]
[1643359915216,41.25280258,89.871,89.775,111.5]
[1643359915421,41.25280258,89.871,89.776,0.25]
[1643359915618,41.25280258,89.871,89.775,111.5]
[1643359915817,44.209494,89.871,89.775,111.5]
[1643359916019,44.209494,89.871,89.734,38.13706624]
[1643359916219,27.51909599,89.87,89.741,2.28870753]
[1643359916421,41.75152467,89.855,89.71,16.1]
[1643359916617,41.75152467,89.855,89.72,6.0]
[1643359916817,10.80669599,89.854,89.721,111.5]
[1643359917018,13.76338741,89.854,89.721,111.5]
[1643359917219,16.1,89.85,89.721,111.5]
[1643359917418,40.9985,89.85,89.722,2.28870753]
[1643359917618,24.8985,89.85,89.732,117.5]
[1643359917817,2.95669142,89.849,89.733,47.746]
[1643359918818,2.95669142,89.849,89.734,111.5]
[1643359919223,2.95669142,89.849,89.735,0.25]
[1643359921922,2.95669142,89.849,89.736,41.64531827]
[1643359922125,41.6138,89.85,89.75,16.1]
[1643359922322,24.8985,89.85,89.751,134.3966]
[1643359923827,24.8985,89.85,89.752,2.28870753]
[1643359924022,0.25,89.849,89.752,2.28870753]
[1643359924324,0.25,89.849,89.753,0.25]
[1643359924722,0.25,89.849,89.753,2.53870753]
[1643359925522,0.25,89.849,89.763,6.0]
[1643359925723,0.25,89.849,89.764,111.5]
[1643359925922,0.25,89.849,89.764,111.75]
[1643359927125,0.25,89.849,89.765,2.28870753]
[1643359927425,23.9461,89.872,89.766,48.062]
[1643359927627,2.95669142,89.848,89.742,2.28870753]
[1643359927928,2.95669142,89.848,89.73,16.1]
[1643359927929,44.16569476,89.847,89.73,16.1]
[1643359928124,54.97239075,89.847,89.73,16.1]
[1643359928326,16.83789528,89.846,89.73,16.1]
[1643359928525,3.07450787,89.845,89.73,16.1]
[1643359928825,16.83789528,89.845,89.73,16.1]
[1643359929025,3.07450787,89.845,89.731,0.25]
[1643359929225,3.07450787,89.844,89.73,16.1]
[1643359929424,3.07450787,89.844,89.74,6.0]
[1643359929629,47.18107687,89.843,89.74,6.0]
[1643359929828,3.07450787,89.842,89.74,6.0]
[1643359930027,6.03119929,89.842,89.732,111.5]
[1643359930229,6.03119929,89.841,89.732,111.5]
[1643359930429,3.07450787,89.84,89.732,111.5]
[1643359930629,6.03119929,89.84,89.732,111.5]
[1643359931030,6.03119929,89.839,89.732,111.5]
[1643359931231,3.07450787,89.838,89.733,0.25]
[1643359931532,6.03119929,89.838,89.733,0.25]
[1643359931731,2.95669142,89.837,89.733,0.25]
[1643359931931,3.07450787,89.836,89.733,0.25]
[1643359932332,2.95669142,89.835,89.733,0.25]
[1643359932531,3.07450787,89.834,89.733,0.25]
[1643359932933,2.95669142,89.833,89.733,0.25]
[1643359933133,3.07450787,89.832,89.733,0.25]
[1643359933334,3.32450787,89.832,89.733,0.25]
[1643359933534,3.07450787,89.831,89.733,0.25]
[1643359935135,3.07450787,89.832,89.733,0.25]
[1643359935839,6.03119929,89.832,89.733,0.25]
[1643359936036,3.07450787,89.831,89.733,0.25]
[1643359937266,2.95669142,89.83,89.733,0.25]
[1643359937439,37.33318924,89.829,89.733,0.25]
[1643359937638,3.07450787,89.828,89.733,0.25]
[1643359937839,6.03119929,89.828,89.733,0.25]
[1643359938042,6.03119929,89.827,89.733,0.25]
[1643359938339,3.07450787,89.826,89.733,0.25]
[1643359938545,6.28119929,89.826,89.733,0.25]
[1643359938740,6.03119929,89.825,89.733,0.25]
[1643359938941,3.07450787,89.824,89.733,0.25]
[1643359939143,3.07450787,89.824,89.742,6.0]
[1643359939440,3.07450787,89.841,89.743,0.25]
[1643359939645,3.07450787,89.841,89.75,6.0]
[1643359939844,3.07450787,89.841,89.751,0.25]
[1643359940246,37.56196184,89.84,89.751,0.25]
[1643359940445,3.07450787,89.839,89.751,0.25]
[1643359941647,3.07450787,89.841,89.751,0.25]
[1643359942247,0.25,89.84,89.751,0.25]
[1643359942448,3.07450787,89.839,89.751,0.25]
[1643359942848,0.25,89.838,89.751,0.25]
[1643359943046,114.57450787,89.841,89.751,0.25]
[1643359943047,3.07450787,89.837,89.751,0.25]
[1643359943248,3.07450787,89.837,89.75,16.1]
[1643359943453,6.03119929,89.837,89.72,16.1]
[1643359943647,4.63900026,89.834,89.721,46.4598]
[1643359943847,43.24953982,89.833,89.722,111.5]
[1643359944047,3.07450787,89.832,89.722,111.5]
[1643359944451,6.03119929,89.832,89.722,111.5]
[1643359944650,114.45669142,89.831,89.723,0.25]
[1643359944868,117.53119929,89.831,89.723,0.25]
[1643359945070,6.03119929,89.83,89.723,0.25]
[1643359945268,3.07450787,89.829,89.723,0.25]
[1643359945467,6.03119929,89.829,89.723,0.25]
[1643359945668,6.03119929,89.828,89.723,0.25]
[1643359945873,3.07450787,89.827,89.723,0.25]
[1643359946068,6.03119929,89.827,89.721,46.4598]
[1643359946269,13.88120386,89.826,89.69,16.1]
[1643359946471,16.1,89.82,89.691,111.5]
[1643359946669,111.5,89.818,89.691,111.5]
[1643359946968,16.7235,89.81,89.691,111.5]
[1643359947169,3.07450787,89.809,89.691,111.5]
[1643359947671,10.80669599,89.808,89.691,111.5]
[1643359947869,3.07450787,89.807,89.691,111.5]
[1643359948070,111.5,89.806,89.691,111.5]
[1643359948272,42.28593093,89.805,89.691,111.5]
[1643359948572,3.07450787,89.804,89.691,111.5]
[1643359948874,3.07450787,89.804,89.692,0.25]
[1643359949273,0.25,89.803,89.692,0.25]
[1643359949472,16.7266,89.79,89.692,0.25]
[1643359949672,37.33787339,89.789,89.692,0.25]
[1643359949873,3.07450787,89.788,89.692,0.25]
[1643359950874,3.07450787,89.788,89.692,25.1633]
[1643359953377,0.25,89.787,89.692,25.1633]
[1643359953576,0.25,89.787,89.693,113.77840157]
[1643359953876,16.7266,89.79,89.694,0.25]
[1643359954075,0.25,89.789,89.694,0.25]
[1643359954475,43.03461001,89.789,89.694,0.25]
[1643359954877,16.7266,89.79,89.694,0.25]
[1643359955077,16.1,89.81,89.693,111.75]
[1643359955281,3.08715955,89.807,89.693,111.75]
[1643359955875,111.5,89.805,89.693,111.75]
[1643359956075,45.56391525,89.806,89.693,111.75]
[1643359956076,3.08715955,89.804,89.693,111.75]
[1643359956378,0.25,89.804,89.693,111.75]
[1643359956575,3.08715955,89.803,89.693,111.75]
[1643359956775,0.25,89.802,89.693,111.75]
[1643359956976,3.08715955,89.801,89.693,111.75]
[1643359957377,16.9753,89.8,89.693,111.75]
[1643359957577,1.54388984,89.781,89.694,2.27840157]
[1643359957780,1.54388984,89.78,89.695,0.25]
[1643359958179,1.54388984,89.78,89.696,2.27840157]
[1643359958380,1.54388984,89.78,89.7,16.1]
[1643359958578,1.54388984,89.78,89.701,111.5]
[1643359958780,1.54388984,89.781,89.701,114.02840157]
[1643359958980,1.54388984,89.781,89.711,6.0]
[1643359959179,16.7209,89.83,89.711,6.0]